[Event "*** Titled Tuesday 3|2 Blitz"]
[Site "Chess.com"]
[Date "2015.12.01"]
[Round "2"]
[White "Schemato"]
[Black "GianmarcoVaR"]
[Result "0-1"]
[WhiteElo "2098"]
[BlackElo "2117"]
[TimeControl "180+2"]
[EndTime "11:20:33 PST"]
[Termination "GianmarcoVaR won on time"]

1. c4 {[%clk 0:03:01.9]} 1... e5 {[%clk 0:02:49.2]} 2. g3 {[%clk 0:03:02.5]}
2... Nf6 {[%clk 0:02:49.2]} 3. Bg2 {[%clk 0:03:02.4]} 3... Nc6 {[%clk
0:02:50.7]} 4. Nc3 {[%clk 0:03:03.5]} 4... Bc5 {[%clk 0:02:50.7]} 5. e3 {[%clk
0:03:04.1]} 5... d6 {[%clk 0:02:47.3]} 6. Nge2 {[%clk 0:03:05.3]} 6... a6 {[%clk
0:02:43.2]} 7. O-O {[%clk 0:03:05.6]} 7... O-O {[%clk 0:02:42.5]} 8. h3 {[%clk
0:03:06.9]} 8... Bf5 {[%clk 0:02:40.2]} 9. d4 {[%clk 0:03:06.3]} 9... Ba7 {[%clk
0:02:39.9]} 10. a3 {[%clk 0:03:06.8]} 10... h6 {[%clk 0:02:39]} 11. b4 {[%clk
0:03:07.1]} 11... Re8 {[%clk 0:02:36.7]} 12. Bb2 {[%clk 0:03:07.3]} 12... Qd7
{[%clk 0:02:33.1]} 13. g4 {[%clk 0:03:04.6]} 13... exd4 {[%clk 0:02:32.9]} 14.
Nxd4 {[%clk 0:02:58.8]} 14... Nxd4 {[%clk 0:02:11.2]} 15. exd4 {[%clk
0:02:59.4]} 15... Be4 {[%clk 0:02:12.3]} 16. Nxe4 {[%clk 0:02:58.1]} 16... Nxe4
{[%clk 0:02:13]} 17. Re1 {[%clk 0:02:52]} 17... d5 {[%clk 0:02:12.6]} 18. c5
{[%clk 0:02:44.6]} 18... Re7 {[%clk 0:02:07.2]} 19. Bxe4 {[%clk 0:02:39.1]}
19... Rxe4 {[%clk 0:02:07.4]} 20. Rxe4 {[%clk 0:02:39.5]} 20... dxe4 {[%clk
0:02:08.1]} 21. d5 {[%clk 0:02:40.2]} 21... Re8 {[%clk 0:02:05.3]} 22. Qd4
{[%clk 0:02:39.8]} 22... f5 {[%clk 0:02:05.7]} 23. gxf5 {[%clk 0:02:35.3]} 23...
Rf8 {[%clk 0:01:54.4]} 24. Qxe4 {[%clk 0:02:27.6]} 24... Rxf5 {[%clk 0:01:55.5]}
25. Rd1 {[%clk 0:02:08]} 25... b6 {[%clk 0:01:56.1]} 26. c6 {[%clk 0:01:48.5]}
26... Rg5+ {[%clk 0:01:57]} 27. Kh2 {[%clk 0:01:38.7]} 27... Qf7 {[%clk
0:01:57.3]} 28. f4 {[%clk 0:01:34.8]} 28... Rf5 {[%clk 0:01:58]} 29. Be5 {[%clk
0:01:29.7]} 29... b5 {[%clk 0:01:56.7]} 30. d6 {[%clk 0:00:47]} 30... cxd6
{[%clk 0:01:56.9]} 31. Rxd6 {[%clk 0:00:47.4]} 31... Bb6 {[%clk 0:01:55.4]} 32.
Qg2 {[%clk 0:00:30.6]} 32... Bc7 {[%clk 0:01:10.6]} 33. Rd7 {[%clk 0:00:23.3]}
33... Bxe5 {[%clk 0:01:11.8]} 34. Rxf7 {[%clk 0:00:21]} 34... Bxf4+ {[%clk
0:01:12.8]} 35. Kh1 {[%clk 0:00:19.1]} 35... Rxf7 {[%clk 0:01:13.6]} 36. Qd5
{[%clk 0:00:17.3]} 36... Bc7 {[%clk 0:01:14]} 37. Kg2 {[%clk 0:00:16.9]} 37...
g6 {[%clk 0:01:14.8]} 38. Qe6 {[%clk 0:00:17.2]} 38... Kg7 {[%clk 0:01:15.6]}
39. Qc8 {[%clk 0:00:15.5]} 39... a5 {[%clk 0:01:15.9]} 40. bxa5 {[%clk
0:00:15.7]} 40... Bxa5 {[%clk 0:01:16.9]} 41. Qb8 {[%clk 0:00:11.3]} 41... Be1
{[%clk 0:00:49.6]} 0-1

[Event "*** Titled Tuesday 3|2 Blitz"]
[Site "Chess.com"]
[Date "2015.12.01"]
[Round "2"]
[White "Keranke"]
[Black "Cryptochess"]
[Result "1/2-1/2"]
[WhiteElo "2599"]
[BlackElo "2431"]
[TimeControl "180+2"]
[EndTime "11:20:37 PST"]
[Termination "Game drawn by repetition"]

1. d4 {[%clk 0:03:01.9]} 1... Nf6 {[%clk 0:03:00]} 2. c4 {[%clk 0:03:02.8]} 2...
e6 {[%clk 0:03:01.9]} 3. g3 {[%clk 0:03:04.2]} 3... Bb4+ {[%clk 0:03:03.3]} 4.
Nd2 {[%clk 0:03:04.8]} 4... O-O {[%clk 0:03:02]} 5. Bg2 {[%clk 0:03:06.1]} 5...
d5 {[%clk 0:03:02.5]} 6. Qc2 {[%clk 0:03:05.8]} 6... c6 {[%clk 0:02:50.6]} 7.
Nf3 {[%clk 0:03:04.8]} 7... b6 {[%clk 0:02:48.1]} 8. O-O {[%clk 0:03:05.4]} 8...
Bb7 {[%clk 0:02:49]} 9. e4 {[%clk 0:03:01.5]} 9... dxe4 {[%clk 0:02:45.2]} 10.
Nxe4 {[%clk 0:03:02.3]} 10... Nbd7 {[%clk 0:02:46.1]} 11. Nxf6+ {[%clk 0:02:43]}
11... Nxf6 {[%clk 0:02:43.9]} 12. c5 {[%clk 0:02:44.4]} 12... bxc5 {[%clk
0:02:18.1]} 13. dxc5 {[%clk 0:02:45.4]} 13... Qe7 {[%clk 0:02:18.3]} 14. Be3
{[%clk 0:02:44]} 14... Nd5 {[%clk 0:02:16.7]} 15. Bd4 {[%clk 0:02:43.3]} 15...
Rfd8 {[%clk 0:02:09.1]} 16. Rac1 {[%clk 0:02:21.9]} 16... f6 {[%clk 0:02:03.8]}
17. a3 {[%clk 0:01:40.7]} 17... Ba5 {[%clk 0:01:59.9]} 18. b4 {[%clk 0:01:42.3]}
18... Bc7 {[%clk 0:02:00.7]} 19. Bb2 {[%clk 0:01:41.1]} 19... e5 {[%clk
0:01:53.6]} 20. Rfe1 {[%clk 0:01:41.2]} 20... a5 {[%clk 0:01:48.3]} 21. Qb3
{[%clk 0:01:36.9]} 21... axb4 {[%clk 0:01:44.4]} 22. axb4 {[%clk 0:01:38.8]}
22... Bc8 {[%clk 0:01:41.7]} 23. b5 {[%clk 0:01:02.8]} 23... Be6 {[%clk
0:01:24.4]} 24. bxc6 {[%clk 0:00:38]} 24... Nf4 {[%clk 0:01:18.5]} 25. Qc2
{[%clk 0:00:38.2]} 25... Nd3 {[%clk 0:01:17]} 26. Red1 {[%clk 0:00:26.1]} 26...
Nxc1 {[%clk 0:01:16.2]} 27. Rxc1 {[%clk 0:00:28]} 27... Bd5 {[%clk 0:01:13.1]}
28. Nd2 {[%clk 0:00:23.7]} 28... Bxg2 {[%clk 0:01:08]} 29. Kxg2 {[%clk
0:00:25.1]} 29... Qe6 {[%clk 0:01:07.8]} 30. Ne4 {[%clk 0:00:15.7]} 30... Qxc6
{[%clk 0:01:06.7]} 31. Kg1 {[%clk 0:00:16.3]} 31... Ra4 {[%clk 0:00:55.7]} 32.
Qb3+ {[%clk 0:00:15]} 32... Kf8 {[%clk 0:00:53.3]} 33. Nd6 {[%clk 0:00:14.1]}
33... Rd7 {[%clk 0:00:23.5]} 34. Qe6 {[%clk 0:00:14.9]} 34... Ra8 {[%clk
0:00:17.2]} 35. Bxe5 {[%clk 0:00:11.5]} 35... fxe5 {[%clk 0:00:17.1]} 36. Qf5+
{[%clk 0:00:12.9]} 36... Kg8 {[%clk 0:00:17.7]} 37. Qe6+ {[%clk 0:00:14.4]}
37... Kf8 {[%clk 0:00:18.8]} 38. Qf5+ {[%clk 0:00:14.5]} 38... Kg8 {[%clk
0:00:19.7]} 39. Qe6+ {[%clk 0:00:15.8]} 39... Kf8 {[%clk 0:00:20.2]} 1/2-1/2

[Event "*** Titled Tuesday 3|2 Blitz"]
[Site "Chess.com"]
[Date "2015.12.01"]
[Round "2"]
[White "Gabrielian_Artur"]
[Black "NguyenDucHoa"]
[Result "0-1"]
[WhiteElo "2426"]
[BlackElo "2358"]
[TimeControl "180+2"]
[EndTime "11:20:43 PST"]
[Termination "NguyenDucHoa won by resignation"]

1. e4 {[%clk 0:02:59.5]} 1... c5 {[%clk 0:03:00.6]} 2. c3 {[%clk 0:03:00.2]}
2... d5 {[%clk 0:02:59.5]} 3. exd5 {[%clk 0:03:01.4]} 3... Qxd5 {[%clk
0:03:01.4]} 4. Na3 {[%clk 0:03:02.7]} 4... Nf6 {[%clk 0:02:56.7]} 5. Nf3 {[%clk
0:03:03.4]} 5... e6 {[%clk 0:02:54.5]} 6. Bc4 {[%clk 0:03:04]} 6... Qd8 {[%clk
0:02:53.7]} 7. O-O {[%clk 0:03:04.4]} 7... a6 {[%clk 0:02:54.2]} 8. d4 {[%clk
0:03:02.9]} 8... b5 {[%clk 0:02:53.1]} 9. Be2 {[%clk 0:03:03.4]} 9... Bb7 {[%clk
0:02:52.5]} 10. Nc2 {[%clk 0:03:02.9]} 10... Nbd7 {[%clk 0:02:47.6]} 11. a4
{[%clk 0:03:02.9]} 11... b4 {[%clk 0:02:40.2]} 12. dxc5 {[%clk 0:02:45.2]} 12...
bxc3 {[%clk 0:02:39.3]} 13. b4 {[%clk 0:02:39.6]} 13... a5 {[%clk 0:02:31.2]}
14. bxa5 {[%clk 0:02:36.2]} 14... Bxc5 {[%clk 0:02:24.7]} 15. Rb1 {[%clk
0:02:36.8]} 15... Ba6 {[%clk 0:02:14.2]} 16. Bxa6 {[%clk 0:02:24.5]} 16... Rxa6
{[%clk 0:02:15.2]} 17. Qd3 {[%clk 0:02:11]} 17... Qxa5 {[%clk 0:02:06.7]} 18.
Rb3 {[%clk 0:01:54.7]} 18... Nd5 {[%clk 0:01:55.7]} 19. Re1 {[%clk 0:01:46.1]}
19... O-O {[%clk 0:01:53.5]} 20. Ng5 {[%clk 0:01:38.9]} 20... g6 {[%clk
0:01:29.4]} 21. Qh3 {[%clk 0:00:57.3]} 21... N7f6 {[%clk 0:01:29]} 22. Rb5
{[%clk 0:00:52.2]} 22... Qxa4 {[%clk 0:01:26.9]} 23. Rxc5 {[%clk 0:00:52.5]}
23... Qxc2 {[%clk 0:01:27.5]} 24. Be3 {[%clk 0:00:37.9]} 24... Rfa8 {[%clk
0:01:13.1]} 25. Rxd5 {[%clk 0:00:28.2]} 25... exd5 {[%clk 0:01:09.6]} 26. g3
{[%clk 0:00:16.7]} 26... Qf5 {[%clk 0:01:04.4]} 27. Qh4 {[%clk 0:00:16.3]} 27...
Ra4 {[%clk 0:00:59]} 28. Bd4 {[%clk 0:00:16.6]} 28... Rxd4 {[%clk 0:00:58.7]}
29. Qxd4 {[%clk 0:00:17.1]} 29... Qxg5 {[%clk 0:00:59.8]} 30. Qxc3 {[%clk
0:00:18.5]} 30... Rd8 {[%clk 0:00:59.3]} 31. Qd4 {[%clk 0:00:19.2]} 31... Kg7
{[%clk 0:00:58.4]} 32. h3 {[%clk 0:00:19]} 32... Qf5 {[%clk 0:00:56.7]} 33. Kg2
{[%clk 0:00:20.2]} 33... Qc8 {[%clk 0:00:54]} 34. Re7 {[%clk 0:00:17.5]} 34...
Rd7 {[%clk 0:00:48.9]} 35. Re3 {[%clk 0:00:17.7]} 35... Qc4 {[%clk 0:00:49.1]}
36. Qb6 {[%clk 0:00:18.2]} 36... d4 {[%clk 0:00:47]} 37. Rf3 {[%clk 0:00:19.5]}
37... Qe6 {[%clk 0:00:48.1]} 38. Qb1 {[%clk 0:00:12.7]} 38... d3 {[%clk
0:00:44.7]} 39. g4 {[%clk 0:00:11.2]} 39... d2 {[%clk 0:00:44.5]} 40. Qd1 {[%clk
0:00:10.6]} 40... Qe1 {[%clk 0:00:45]} 0-1

[Event "*** Titled Tuesday 3|2 Blitz"]
[Site "Chess.com"]
[Date "2015.12.01"]
[Round "2"]
[White "BjarkeSahl"]
[Black "darsen_sanzhaev"]
[Result "0-1"]
[WhiteElo "2143"]
[BlackElo "2276"]
[TimeControl "180+2"]
[EndTime "11:21:03 PST"]
[Termination "darsen_sanzhaev won by resignation"]

1. d4 {[%clk 0:03:01.9]} 1... Nf6 {[%clk 0:02:59.9]} 2. Nf3 {[%clk 0:03:02.7]}
2... e6 {[%clk 0:02:59.4]} 3. c4 {[%clk 0:03:02.8]} 3... b6 {[%clk 0:03:00.3]}
4. Nc3 {[%clk 0:03:03.4]} 4... Bb7 {[%clk 0:02:57.4]} 5. g3 {[%clk 0:03:03.8]}
5... d5 {[%clk 0:02:51.9]} 6. cxd5 {[%clk 0:03:01.6]} 6... Nxd5 {[%clk
0:02:53.1]} 7. Bg2 {[%clk 0:03:03.1]} 7... Be7 {[%clk 0:02:47]} 8. O-O {[%clk
0:03:03.6]} 8... O-O {[%clk 0:02:48.1]} 9. Re1 {[%clk 0:03:03.8]} 9... Nxc3
{[%clk 0:02:40.3]} 10. bxc3 {[%clk 0:03:04]} 10... Be4 {[%clk 0:02:42.2]} 11.
Bh3 {[%clk 0:02:58.2]} 11... Bd5 {[%clk 0:02:28.1]} 12. e4 {[%clk 0:02:57.3]}
12... Bb7 {[%clk 0:02:20.1]} 13. Ne5 {[%clk 0:02:34.1]} 13... Nd7 {[%clk
0:02:18.2]} 14. Nxd7 {[%clk 0:02:33.1]} 14... Qxd7 {[%clk 0:02:19.2]} 15. d5
{[%clk 0:02:26.8]} 15... Bc5 {[%clk 0:02:11.4]} 16. Be3 {[%clk 0:02:25.5]} 16...
Bxe3 {[%clk 0:01:48.3]} 17. Rxe3 {[%clk 0:02:23.6]} 17... Bc8 {[%clk 0:01:49.3]}
18. dxe6 {[%clk 0:01:59.2]} 18... Qxd1+ {[%clk 0:01:46.9]} 19. Rxd1 {[%clk
0:02:00.3]} 19... Bxe6 {[%clk 0:01:47.1]} 20. Bxe6 {[%clk 0:01:59.3]} 20... fxe6
{[%clk 0:01:49]} 21. Rd7 {[%clk 0:01:59.9]} 21... Rf7 {[%clk 0:01:49.5]} 22.
Red3 {[%clk 0:02:01.2]} 22... Raf8 {[%clk 0:01:45]} 23. f4 {[%clk 0:02:02.1]}
23... Rxd7 {[%clk 0:01:39.1]} 24. Rxd7 {[%clk 0:02:02]} 24... Rf7 {[%clk
0:01:41]} 25. Rd8+ {[%clk 0:02:01.6]} 25... Rf8 {[%clk 0:01:42.2]} 26. Rd7
{[%clk 0:01:56.8]} 26... Rf7 {[%clk 0:01:43.5]} 27. Rd4 {[%clk 0:01:57.9]} 27...
e5 {[%clk 0:01:29.2]} 28. fxe5 {[%clk 0:01:57.2]} 28... Re7 {[%clk 0:01:29.7]}
29. Rd5 {[%clk 0:01:49.1]} 29... Kf7 {[%clk 0:01:05.5]} 30. Kf2 {[%clk
0:01:49.3]} 30... Ke6 {[%clk 0:01:06.1]} 31. Ke3 {[%clk 0:01:49.1]} 31... Rf7
{[%clk 0:01:06.6]} 32. a4 {[%clk 0:01:44.3]} 32... h5 {[%clk 0:00:41.8]} 33. a5
{[%clk 0:01:44.7]} 33... g5 {[%clk 0:00:37.7]} 34. axb6 {[%clk 0:01:44.2]} 34...
axb6 {[%clk 0:00:36.2]} 35. c4 {[%clk 0:01:39.4]} 35... g4 {[%clk 0:00:34.2]}
36. c5 {[%clk 0:01:40.1]} 36... Rf3+ {[%clk 0:00:16.5]} 37. Kd4 {[%clk 0:01:40]}
37... b5 {[%clk 0:00:08.2]} 38. c6 {[%clk 0:01:39.4]} 38... b4 {[%clk
0:00:08.9]} 39. Rd7 {[%clk 0:01:33.6]} 39... Rf2 {[%clk 0:00:05.3]} 40. Rxc7
{[%clk 0:01:33.5]} 40... Rd2+ {[%clk 0:00:06.3]} 41. Kc4 {[%clk 0:01:31.4]}
41... Kxe5 {[%clk 0:00:05.6]} 42. Re7+ {[%clk 0:01:26.9]} 42... Kf6 {[%clk
0:00:06.5]} 43. Rb7 {[%clk 0:01:21.7]} 43... Rc2+ {[%clk 0:00:03.1]} 44. Kd5
{[%clk 0:01:22.1]} 44... Rd2+ {[%clk 0:00:03.9]} 45. Kc5 {[%clk 0:01:21.5]}
45... Rxh2 {[%clk 0:00:02.3]} 46. Rxb4 {[%clk 0:01:21.6]} 46... Rc2+ {[%clk
0:00:02.5]} 47. Rc4 {[%clk 0:01:22.3]} 47... Rxc4+ {[%clk 0:00:03.5]} 48. Kxc4
{[%clk 0:01:22.9]} 48... Ke7 {[%clk 0:00:05]} 49. e5 {[%clk 0:01:23]} 49... h4
{[%clk 0:00:05.9]} 50. Kd5 {[%clk 0:01:13.5]} 50... h3 {[%clk 0:00:05.1]} 51. e6
{[%clk 0:01:11.1]} 51... h2 {[%clk 0:00:04.8]} 52. c7 {[%clk 0:01:12.7]} 52...
h1=Q+ {[%clk 0:00:06.1]} 53. Ke5 {[%clk 0:01:14.5]} 53... Qc6 {[%clk 0:00:05.2]}
0-1

[Event "*** Titled Tuesday 3|2 Blitz"]
[Site "Chess.com"]
[Date "2015.12.01"]
[Round "2"]
[White "AndroQueen"]
[Black "oggy1984"]
[Result "1-0"]
[WhiteElo "2272"]
[BlackElo "2202"]
[TimeControl "180+2"]
[EndTime "11:21:14 PST"]
[Termination "AndroQueen won by resignation"]

1. e4 {[%clk 0:03:01.9]} 1... c5 {[%clk 0:02:56.8]} 2. Nf3 {[%clk 0:03:01.4]}
2... e6 {[%clk 0:02:57]} 3. d4 {[%clk 0:03:02.3]} 3... cxd4 {[%clk 0:02:57.3]}
4. Nxd4 {[%clk 0:03:04.2]} 4... Nf6 {[%clk 0:02:57.5]} 5. Nc3 {[%clk 0:03:05.1]}
5... d6 {[%clk 0:02:57.7]} 6. f4 {[%clk 0:03:04.8]} 6... a6 {[%clk 0:02:56.7]}
7. Qf3 {[%clk 0:03:03.7]} 7... Qc7 {[%clk 0:02:49]} 8. Be3 {[%clk 0:03:02.2]}
8... b5 {[%clk 0:02:43.3]} 9. a3 {[%clk 0:02:50.3]} 9... Bb7 {[%clk 0:02:43.1]}
10. Bd3 {[%clk 0:02:50.2]} 10... Nbd7 {[%clk 0:02:41.9]} 11. g4 {[%clk
0:02:48.5]} 11... Nb6 {[%clk 0:02:40.1]} 12. g5 {[%clk 0:02:48.3]} 12... Nfd7
{[%clk 0:02:40.2]} 13. h4 {[%clk 0:02:36.7]} 13... Be7 {[%clk 0:02:34.8]} 14. h5
{[%clk 0:02:36.8]} 14... Nc4 {[%clk 0:02:26.2]} 15. Bxc4 {[%clk 0:02:25]} 15...
Qxc4 {[%clk 0:02:25.4]} 16. O-O-O {[%clk 0:02:23.3]} 16... d5 {[%clk 0:02:01.8]}
17. exd5 {[%clk 0:02:17.8]} 17... Bxa3 {[%clk 0:01:58.4]} 18. bxa3 {[%clk
0:02:00]} 18... Qxc3 {[%clk 0:01:58.1]} 19. Rd3 {[%clk 0:01:57.6]} 19... Qc7
{[%clk 0:01:21.4]} 20. g6 {[%clk 0:00:37.7]} 20... Bxd5 {[%clk 0:01:10.9]} 21.
gxf7+ {[%clk 0:00:38.5]} 21... Kxf7 {[%clk 0:01:09]} 22. Qh3 {[%clk 0:00:39.6]}
22... Nc5 {[%clk 0:00:57.2]} 23. Rc3 {[%clk 0:00:34.4]} 23... Bxh1 {[%clk
0:00:47]} 24. Nxe6 {[%clk 0:00:30.4]} 24... Qd6 {[%clk 0:00:06.9]} 25. Ng5+
{[%clk 0:00:24.3]} 25... Ke8 {[%clk 0:00:05.2]} 26. Qxh1 {[%clk 0:00:24.5]}
26... Rc8 {[%clk 0:00:04.9]} 27. Bxc5 {[%clk 0:00:20.5]} 27... Rxc5 {[%clk
0:00:05.2]} 28. Qa8+ {[%clk 0:00:19.2]} 28... Ke7 {[%clk 0:00:05.3]} 29. Qa7+
{[%clk 0:00:18.3]} 29... Ke8 {[%clk 0:00:02.9]} 30. Qxc5 {[%clk 0:00:16.2]}
30... Qxc5 {[%clk 0:00:03.1]} 31. Rxc5 {[%clk 0:00:17.3]} 31... Kd7 {[%clk
0:00:03.3]} 32. Rf5 {[%clk 0:00:18.5]} 32... h6 {[%clk 0:00:02.1]} 33. Ne4
{[%clk 0:00:19.4]} 33... Ke6 {[%clk 0:00:02.4]} 34. Re5+ {[%clk 0:00:20.5]}
34... Kd7 {[%clk 0:00:03]} 35. Nc5+ {[%clk 0:00:21.7]} 35... Kc6 {[%clk
0:00:03.3]} 36. Nxa6 {[%clk 0:00:23.1]} 36... Rf8 {[%clk 0:00:04.2]} 37. Nb4+
{[%clk 0:00:24.5]} 37... Kb6 {[%clk 0:00:05]} 38. f5 {[%clk 0:00:24.8]} 38...
Ka5 {[%clk 0:00:05.6]} 39. Nd3 {[%clk 0:00:25.2]} 39... Ka4 {[%clk 0:00:06.1]}
40. Kb2 {[%clk 0:00:26.7]} 40... Rf7 {[%clk 0:00:05.6]} 41. Re4+ {[%clk
0:00:25.1]} 41... Ka5 {[%clk 0:00:06.5]} 42. Rf4 {[%clk 0:00:24.8]} 42... Rc7
{[%clk 0:00:05.8]} 43. f6 {[%clk 0:00:25.4]} 43... gxf6 {[%clk 0:00:06.1]} 44.
Rxf6 {[%clk 0:00:26.6]} 1-0

[Event "*** Titled Tuesday 3|2 Blitz"]
[Site "Chess.com"]
[Date "2015.12.01"]
[Round "2"]
[White "RitvarsReimanis"]
[Black "Thomaslegend"]
[Result "1-0"]
[WhiteElo "2297"]
[BlackElo "2147"]
[TimeControl "180+2"]
[EndTime "11:21:15 PST"]
[Termination "RitvarsReimanis won by resignation"]

1. d4 {[%clk 0:03:00]} 1... Nf6 {[%clk 0:03:00.3]} 2. c4 {[%clk 0:03:01.4]} 2...
g6 {[%clk 0:03:01.6]} 3. Nc3 {[%clk 0:02:53]} 3... d5 {[%clk 0:03:02.7]} 4. cxd5
{[%clk 0:02:51]} 4... Nxd5 {[%clk 0:03:04.6]} 5. e4 {[%clk 0:02:52.1]} 5... Nxc3
{[%clk 0:03:05.9]} 6. bxc3 {[%clk 0:02:54]} 6... Bg7 {[%clk 0:03:07.5]} 7. Nf3
{[%clk 0:02:53.9]} 7... c5 {[%clk 0:03:06.9]} 8. Be3 {[%clk 0:02:54.3]} 8... O-O
{[%clk 0:02:59.6]} 9. Be2 {[%clk 0:02:54.6]} 9... b6 {[%clk 0:03:00]} 10. O-O
{[%clk 0:02:55.4]} 10... Bb7 {[%clk 0:03:00.8]} 11. Qc2 {[%clk 0:02:54.7]} 11...
Nd7 {[%clk 0:02:47.4]} 12. Rfd1 {[%clk 0:02:47.4]} 12... Qc8 {[%clk 0:02:36.7]}
13. Rac1 {[%clk 0:02:35.6]} 13... cxd4 {[%clk 0:02:16.7]} 14. Bxd4 {[%clk
0:02:34]} 14... e5 {[%clk 0:02:15.2]} 15. Be3 {[%clk 0:02:33.2]} 15... Nc5
{[%clk 0:02:09]} 16. Nd2 {[%clk 0:02:31]} 16... Rd8 {[%clk 0:01:58.5]} 17. f3
{[%clk 0:02:32.1]} 17... Ba6 {[%clk 0:01:53.1]} 18. Nc4 {[%clk 0:02:20.5]} 18...
Rxd1+ {[%clk 0:01:39.6]} 19. Rxd1 {[%clk 0:02:13]} 19... Nxe4 {[%clk 0:01:27.7]}
20. Qxe4 {[%clk 0:02:05]} 20... Bb7 {[%clk 0:00:55.2]} 21. Qh4 {[%clk
0:02:00.8]} 21... Qe6 {[%clk 0:00:52.6]} 22. Rd8+ {[%clk 0:01:59.2]} 22... Rxd8
{[%clk 0:00:53]} 23. Qxd8+ {[%clk 0:02:01.1]} 23... Bf8 {[%clk 0:00:54.6]} 24.
Bh6 {[%clk 0:01:51.4]} 24... Qe7 {[%clk 0:00:55.6]} 25. Qxf8+ {[%clk 0:01:50.8]}
25... Qxf8 {[%clk 0:00:56.4]} 26. Bxf8 {[%clk 0:01:52.7]} 26... Kxf8 {[%clk
0:00:58.3]} 27. Nxe5 {[%clk 0:01:53.8]} 27... Ke7 {[%clk 0:00:52.2]} 28. Kf2
{[%clk 0:01:54.2]} 28... f6 {[%clk 0:00:53.3]} 29. Nc4 {[%clk 0:01:53]} 29...
Ke6 {[%clk 0:00:53.2]} 30. Ke3 {[%clk 0:01:54.4]} 30... Kd5 {[%clk 0:00:54.4]}
31. Nd2 {[%clk 0:01:55.3]} 31... f5 {[%clk 0:00:53.2]} 32. Bc4+ {[%clk
0:01:55.5]} 32... Kc5 {[%clk 0:00:54.3]} 33. Bg8 {[%clk 0:01:57.4]} 33... h6
{[%clk 0:00:54]} 34. Nb3+ {[%clk 0:01:58.4]} 34... Kb5 {[%clk 0:00:54.2]} 35.
Kd4 {[%clk 0:01:58.6]} 35... g5 {[%clk 0:00:54]} 36. Bh7 {[%clk 0:01:59.1]}
36... f4 {[%clk 0:00:54.9]} 37. Nd2 {[%clk 0:01:54.1]} 37... Ka4 {[%clk
0:00:53]} 38. Bg8 {[%clk 0:01:51.8]} 38... b5 {[%clk 0:00:52.2]} 39. Ne4 {[%clk
0:01:45.9]} 39... Ka3 {[%clk 0:00:47.2]} 40. Nc5 {[%clk 0:01:40.5]} 40... Bc8
{[%clk 0:00:44.8]} 41. Nd3 {[%clk 0:01:29.8]} 41... a5 {[%clk 0:00:39.6]} 42. g3
{[%clk 0:01:30.6]} 42... fxg3 {[%clk 0:00:39.6]} 43. hxg3 {[%clk 0:01:32.5]}
43... Bf5 {[%clk 0:00:33.5]} 44. f4 {[%clk 0:01:31.1]} 44... gxf4 {[%clk
0:00:33.8]} 45. gxf4 {[%clk 0:01:33]} 45... h5 {[%clk 0:00:32.3]} 46. Bd5 {[%clk
0:01:33.1]} 46... h4 {[%clk 0:00:31.1]} 47. Nf2 {[%clk 0:01:29.1]} 47... h3
{[%clk 0:00:28.5]} 48. Kc5 {[%clk 0:01:26.5]} 48... b4 {[%clk 0:00:27.1]} 49.
cxb4 {[%clk 0:01:27.7]} 49... axb4 {[%clk 0:00:28.2]} 50. Kd4 {[%clk 0:01:28.6]}
50... Bb1 {[%clk 0:00:14.8]} 51. Nxh3 {[%clk 0:01:17.5]} 51... Bxa2 {[%clk
0:00:16.1]} 52. Bxa2 {[%clk 0:01:15.2]} 52... Kxa2 {[%clk 0:00:17.2]} 53. Nf2
{[%clk 0:01:16.2]} 53... b3 {[%clk 0:00:12.4]} 54. Nd3 {[%clk 0:01:15.1]} 1-0